bitfinex/quotes_ETHUSD_20251128
["timestamp","ask_amount","ask_price","bid_price","bid_amount"]
[1764292658855,0.212,3003.8,3003.4,3.36283614]
[1764292659240,0.212,3003.8,3003.4,0.03329559]
[1764292659444,0.25347591,3003.8,3003.3,3.36292231]
[1764292659648,0.25347591,3003.8,3003.3,3.32962561]
[1764292659953,0.73207591,3003.8,3003.3,3.36292231]
[1764292660251,0.212,3003.8,3003.3,3.84112231]
[1764292660749,0.72917591,3003.8,3003.3,3.32962561]
[1764292661055,0.72917591,3003.8,3003.3,3.36292231]
[1764292661223,1.0,3003.5,3003.3,3.32962561]
[1764292661563,1.0,3003.5,3003.4,0.03329559]
[1764292661758,1.0,3003.5,3003.4,0.4585]
[1764292661961,1.3085,3003.5,3003.1,3.3298304]
[1764292662457,1.3085,3003.5,3002.7,0.001]
[1764292662458,0.0031,3003.2,3002.7,0.001]
[1764292662622,0.5175,3003.1,3002.7,0.001]
[1764292662828,0.0061,3002.8,3002.7,0.001]
[1764292663556,0.4836,3002.8,3002.7,0.001]
[1764292663764,0.7843,3002.8,3002.7,0.001]
[1764292665675,0.4836,3002.8,3002.7,0.001]
[1764292665976,3.32986199,3003.2,3002.7,0.4595]
[1764292666156,0.99558957,3003.1,3002.7,0.001]
[1764292666481,0.3085,3002.8,3002.7,0.001]
[1764292667370,0.7825,3002.8,3002.7,0.001]
[1764292667578,4.11272512,3002.8,3002.7,0.001]
[1764292667767,4.83182105,3002.8,3002.7,0.001]
[1764292671345,1.09032342,3002.8,3002.7,0.001]
[1764292671568,0.9945,3002.8,3002.7,0.001]
[1764292671848,4.32472512,3002.8,3002.7,0.001]
[1764292673274,0.9945,3002.8,3002.7,0.001]
[1764292674469,4.32472512,3002.8,3002.7,0.001]
[1764292674656,5.13582302,3002.8,3002.7,0.001]
[1764292676366,5.44333699,3002.8,3002.7,0.001]
[1764292680085,13.34395919,3002.8,3002.7,0.001]
[1764292680289,13.34395919,3002.8,3002.5,0.001]
[1764292680290,0.836504,3002.6,3002.5,0.001]
[1764292680589,1.56209811,3002.5,3002.4,0.001]
[1764292680795,1.15659411,3002.2,3000.5,0.1907]
[1764292680955,1.15659411,3002.2,2999.9,0.32416657]
[1764292680956,0.405504,3001.8,3000.3,0.1907]
[1764292681150,0.405504,3001.8,2999.9,0.32416657]
[1764292681151,0.865704,3001.6,3000.1,0.1907]
[1764292681385,4.581075,3001.5,2999.9,0.32416657]
[1764292681560,1.142204,3001.3,2999.9,0.1907]
[1764292681760,1.66171797,3001.3,2999.9,0.1907]
[1764292681982,2.13741797,3001.3,2999.9,0.1907]
[1764292682285,2.42371918,3001.3,3000.0,0.4961]
[1764292682487,1.37521518,3001.3,2999.9,0.1907]
[1764292682784,1.021,3001.3,3000.2,3.82914046]
[1764292682983,1.021,3001.3,3000.4,0.4961]
[1764292683185,1.021,3001.3,2999.9,0.1907]
[1764292683387,1.452,3001.3,3000.2,0.4961]
[1764292683752,1.121,3001.3,3000.3,0.03333]
[1764292683956,1.121,3001.3,3000.3,3.36628622]
[1764292684270,1.452,3001.3,3000.2,0.4961]
[1764292684788,4.78388951,3001.3,3000.2,0.4961]
[1764292684965,5.97387302,3001.3,3000.2,0.4961]
[1764292685362,6.37937702,3001.3,3000.0,3.3332486]
[1764292685669,6.37937702,3001.3,2999.9,0.6868]
[1764292685870,6.37937702,3001.3,3000.0,3.33331329]
[1764292686071,7.10497113,3001.3,2999.9,4.02020141]
[1764292686277,7.10497113,3001.3,2999.9,0.6868]
[1764292686663,7.10497113,3001.3,2999.6,3.33375322]
[1764292686664,13.48497113,3001.3,2999.6,0.4961]
[1764292686964,0.431,3000.7,2999.6,0.4961]
[1764292687166,0.93759411,3000.6,2999.6,0.4961]
[1764292687463,0.49596175,3000.5,2999.6,3.33376689]
[1764292687664,0.49596175,3000.5,2998.9,0.4961]
[1764292687665,0.5191,2999.7,2998.9,0.4961]
[1764292687875,0.212,2999.6,2998.7,0.67631405]
[1764292688064,0.6597,2999.7,2998.9,0.4961]
[1764292688282,0.6597,2999.7,2998.2,0.72559411]
[1764292688483,5.61734333,3000.7,2998.5,0.1]
[1764292688484,0.184,2999.9,2998.5,0.1]
[1764292688692,0.212,2999.8,2998.5,0.1]
[1764292688881,1.53229411,3000.5,2999.8,0.4585]
[1764292689096,1.53229411,3000.5,2999.5,0.1907]
[1764292689097,0.51689221,3000.4,2999.5,0.1907]
[1764292689273,0.51689221,3000.4,2998.4,0.405504]
[1764292689274,0.405504,2999.6,2998.1,0.1907]
[1764292689474,0.4729,2999.4,2998.2,0.52945334]
[1764292689699,0.71007788,2999.3,2998.2,0.4961]
[1764292689879,0.743404,2999.3,2998.2,0.4961]
[1764292690200,0.5757,2999.2,2998.2,0.4961]
[1764292690500,0.212,2999.1,2998.2,0.5961]
[1764292690670,0.4638,2999.6,2998.2,0.5961]
[1764292690873,0.4638,3000.1,2999.5,0.4685]
[1764292691088,0.212,3000.0,2999.5,0.6508]
[1764292691314,0.30434408,3000.3,2999.5,1.1428]
[1764292691483,0.4638,3000.4,2999.5,0.6508]
[1764292691668,0.04147591,3000.7,2999.6,0.492]
[1764292692000,0.56879715,3000.6,2999.6,0.492]
[1764292692370,0.4847,3000.5,2999.6,0.492]
[1764292692572,0.431,3000.4,2999.6,0.492]
[1764292692776,0.1,3000.4,2999.6,0.492]
[1764292692983,0.431,3000.4,2999.6,0.492]
[1764292693302,4.24862862,3000.4,2999.5,0.1823]
[1764292693490,0.80377348,3000.3,2999.5,0.1823]
[1764292693689,0.76707002,3000.3,2999.5,0.6409]
[1764292693889,0.04147591,3000.3,2999.5,0.6409]
[1764292694076,0.76707002,3000.3,2999.5,0.6409]
[1764292694400,0.04147591,3000.3,2999.5,0.6409]
[1764292694613,1.25177002,3000.3,2999.5,0.1823]
[1764292694775,0.72559411,3000.2,2999.5,0.1823]
[1764292694975,0.25447591,3000.1,2999.5,0.1823]
[1764292695803,0.25447591,3000.1,2998.7,4.06032431]
[1764292695804,0.25447591,3000.1,2999.2,0.1909]
[1764292696211,0.04147591,3000.1,2999.3,0.49194111]
[1764292696421,0.213,3000.0,2999.3,0.4586]
[1764292697096,0.04147591,2999.9,2999.3,0.4586]
[1764292697277,0.04147591,2999.9,2999.4,3.33400013]
[1764292697479,0.04147591,2999.9,2999.8,0.4729]
[1764292698006,0.04147591,2999.9,2999.5,0.4586]
[1764292698905,0.04147591,2999.9,2999.8,0.4729]
[1764292699094,0.213,2999.9,2999.8,0.9315]
[1764292699676,0.34574176,3000.2,2999.8,0.9315]
[1764292699921,0.213,3000.1,2999.8,0.9315]
[1764292700090,0.04147591,3000.0,2999.8,0.9315]
[1764292700482,0.04147591,3000.0,2999.8,0.4729]
[1764292701119,0.6364,2999.9,2998.9,0.4586]
[1764292701303,0.51884398,2999.8,2999.1,0.1909]
[1764292701812,0.30445034,2999.7,2998.9,0.4586]
[1764292702016,0.30445034,2999.7,2998.5,0.4596]
[1764292702017,0.213,2999.6,2998.5,0.4596]
[1764292702218,0.30445034,2999.5,2998.5,0.4596]
[1764292702384,0.30445034,2999.4,2998.5,0.4596]
[1764292702581,0.30445034,2999.3,2998.6,0.03334889]
[1764292702804,0.30445034,2999.4,2998.5,3.79459019]
[1764292702988,0.63545034,2999.3,2998.5,0.001]
[1764292703202,0.70139836,2999.2,2998.5,0.001]
[1764292703405,0.61745034,2999.1,2998.5,0.001]
[1764292703718,0.51745034,2999.1,2998.5,0.001]
[1764292704316,0.30445034,2999.0,2998.5,0.001]
[1764292704685,0.78915034,2999.0,2998.5,0.001]
[1764292704907,0.213,2999.1,2998.5,0.001]
[1764292705214,0.3047582,2999.0,2998.5,0.001]
[1764292705387,0.3047582,2998.9,2998.5,0.001]
[1764292705585,0.4847,2998.9,2998.5,0.001]
[1764292705790,0.30491875,2998.8,2998.5,0.001]
[1764292706013,0.57691104,2999.0,2998.5,0.001]
[1764292706014,0.213,2999.0,2998.5,0.001]
[1764292706229,0.30520377,2998.9,2998.5,0.001]
[1764292706520,0.30520377,2998.8,2998.5,0.4596]
[1764292706816,0.213,2999.0,2998.5,0.4596]
[1764292707012,0.30518939,2998.9,2998.5,0.4596]
[1764292707217,3.37558822,2999.3,2998.5,3.79459897]
[1764292707218,0.30518939,2998.8,2998.5,3.79459897]
[1764292707516,0.213,2999.3,2999.2,0.4729]
[1764292707693,0.30551551,2999.3,2999.2,0.4729]
[1764292707893,0.04147591,2999.7,2999.2,0.4729]
[1764292707894,0.04147591,2999.7,2999.2,0.96484222]
[1764292708213,0.184,3000.8,2999.6,0.4729]
[1764292708214,0.213,3000.0,2999.6,0.4729]
[1764292708413,0.30604658,2999.9,2999.8,0.4729]
[1764292708603,0.81624658,2999.9,2999.1,5.88791438]
[1764292708790,0.34752249,2999.8,2999.2,0.4586]
[1764292708989,0.30604658,2999.7,2999.3,3.33411129]
[1764292709190,0.30604658,2999.6,2999.3,3.82534526]
[1764292709412,0.30604658,2999.5,2999.4,0.4586]
[1764292709937,0.30604658,2999.5,2999.4,0.4729]
[1764292710219,0.30604658,2999.5,2999.2,3.3341992]
[1764292710393,0.30604658,2999.5,2999.1,5.88791438]
[1764292710394,0.30604658,2999.4,2999.1,5.88791438]
[1764292710599,0.30604658,2999.3,2999.1,5.88791438]
[1764292710802,0.34752249,2999.2,2998.7,3.33470799]
[1764292711033,0.4847,2999.4,2998.9,5.69701438]
[1764292711034,0.30604658,2999.1,2998.9,5.69701438]
[1764292711200,0.213,2999.4,2999.1,0.1909]
[1764292711404,0.30664354,2999.3,2999.1,0.6495]
[1764292711607,0.30664354,2999.2,2999.1,0.6495]
[1764292711830,0.30664354,2999.2,2999.1,0.1909]
[1764292711993,0.30664354,2999.2,2999.1,0.6638]
[1764292712411,0.30664354,2999.2,2999.1,1.1224]
[1764292712619,0.30664354,2999.2,2999.1,1.80434144]
[1764292712989,0.213,2999.7,2999.1,8.5730087]
[1764292713223,0.213,2999.7,2999.6,0.4729]
[1764292714097,0.213,2999.7,2999.6,0.9315]
[1764292714298,0.213,2999.7,2999.6,0.4729]
[1764292714696,0.3562,2999.7,2999.1,0.1909]
[1764292715019,0.04147591,2999.6,2999.1,0.1909]
[1764292715222,0.04147591,2999.6,2999.1,3.52521973]
[1764292715435,0.04147591,2999.6,2999.2,0.4586]
[1764292715655,0.04147591,2999.8,2999.5,0.4729]
[1764292715814,0.213,2999.7,2999.5,0.4729]
[1764292716013,0.213,2999.7,2999.2,0.4586]
[1764292716306,0.213,2999.7,2999.1,13.24253388]
[1764292716499,0.04147591,2999.6,2999.1,9.90820025]
[1764292716705,0.213,2999.7,2999.2,0.4586]
[1764292717007,0.04147591,2999.8,2999.6,0.4729]
[1764292717205,0.213,2999.7,2999.6,0.4729]
[1764292717712,1.21029411,3000.3,2999.6,0.9315]
[1764292717713,0.04147591,2999.9,2999.6,0.9315]
[1764292717913,0.452,2999.7,2999.1,5.88791438]
[1764292718114,0.452,2999.7,2999.1,9.22223535]
[1764292718115,0.49347591,2999.7,2999.1,9.22223535]
[1764292718425,0.04147591,2999.7,2999.6,0.4729]
[1764292718602,0.213,2999.8,2999.6,0.4729]
[1764292718927,0.213,2999.8,2999.7,0.4729]
[1764292719623,0.213,2999.8,2999.2,7.1270449]
[1764292719825,0.04147591,2999.7,2999.2,6.6684449]
[1764292720119,0.04147591,2999.7,2999.2,8.47948918]
[1764292720429,0.04147591,2999.7,2999.2,8.49788918]
[1764292720935,0.002,2999.7,2999.3,0.51034111]
[1764292721131,0.04347591,2999.7,2999.3,0.51034111]
[1764292721368,0.04347591,2999.7,2999.4,3.33400013]
[1764292721806,0.04347591,2999.7,2999.2,6.66841934]
[1764292722005,0.04347591,2999.7,2999.3,0.477]
[1764292723440,0.04347591,2999.7,2999.4,3.33400013]
[1764292723599,0.4773,2999.6,2999.1,3.52618315]
[1764292723928,0.3266,2999.4,2999.1,3.33528315]
[1764292724128,0.5396,2999.4,2999.1,0.001]
[1764292724426,0.5396,2999.4,2999.1,3.33533224]
[1764292725011,0.30747566,2999.3,2999.1,0.001]
[1764292725211,0.31227566,2999.2,2999.1,0.001]
[1764292725402,1.05053323,2999.2,2999.1,0.001]
[1764292725602,1.52783323,2999.2,2999.1,0.001]
[1764292726136,1.26353323,2999.2,2999.1,0.001]
[1764292726706,0.31227566,2999.2,2999.1,0.001]
[1764292726939,0.52047566,2999.2,2999.1,0.001]
[1764292727124,0.30747566,2999.2,2999.1,1.1623]
[1764292727312,0.30747566,2999.2,2999.1,4.49663363]
[1764292727919,0.213,2999.3,2999.1,4.49663363]
[1764292728119,0.213,2999.3,2999.2,0.4992]
[1764292728438,0.5203988,2999.3,2999.2,0.4992]
[1764292729638,0.5203988,2999.3,2999.1,0.001]
[1764292729815,0.213,2999.3,2999.1,3.52042974]
[1764292730142,0.213,2999.3,2999.2,0.4992]
[1764292730340,0.213,2999.6,2999.2,1.79598246]
[1764292730542,0.30747422,2999.5,2999.2,1.26344024]
[1764292730746,0.213,2999.6,2999.5,0.4992]
[1764292730951,0.213,2999.6,2999.1,3.52042974]
[1764292730952,0.52047438,2999.6,2999.1,3.52042974]
[1764292731118,0.34895029,2999.5,2999.1,6.85476337]
[1764292731313,0.30745079,2999.4,2999.1,0.001]
[1764292731618,0.04147591,2999.5,2999.1,0.001]
[1764292731947,0.30742974,2999.4,2999.1,0.001]
[1764292732136,0.34890565,2999.3,2999.1,0.001]
[1764292732332,0.04147591,2999.3,2999.1,0.001]
[1764292733036,0.04147591,2999.4,2999.1,0.001]
[1764292733237,0.30744126,2999.3,2999.1,0.001]
[1764292733443,0.04147591,2999.4,2999.1,0.001]
[1764292733741,0.30744128,2999.3,2999.2,0.477]
[1764292734145,0.213,2999.4,2999.2,0.9762]
[1764292734342,0.213,2999.4,2999.2,0.4992]
[1764292734548,0.213,2999.4,2999.1,0.001]
[1764292735116,0.213,2999.4,2999.1,0.6631]
[1764292735345,0.213,2999.4,2999.3,0.4992]
[1764292735529,0.52023648,2999.4,2999.3,0.4992]
[1764292735738,0.52023648,2999.4,2999.3,3.83331129]
[1764292736254,0.52023648,2999.4,2999.3,0.4992]
[1764292736461,0.52023648,2999.4,2999.2,3.3341542]
[1764292736750,0.213,2999.4,2999.2,3.3341542]
[1764292737249,0.30745975,2999.3,2999.2,3.3341542]
[1764292737425,0.63405975,2999.3,2999.1,0.001]
[1764292737747,0.35372544,2999.2,2999.1,0.001]
[1764292737948,0.83102544,2999.2,2999.1,0.001]
[1764292738349,1.26882963,2999.2,2999.1,0.001]
[1764292738554,0.83102544,2999.2,2999.1,0.001]
[1764292738732,1.16202544,2999.2,2999.1,0.001]
[1764292738926,1.26202544,2999.2,2999.1,0.001]
[1764292739247,4.59624789,2999.2,2999.1,0.001]
[1764292739448,1.26202544,2999.2,2999.1,0.001]
[1764292739656,1.95613664,2999.2,2999.1,0.001]
[1764292739823,5.29035909,2999.2,2999.1,0.001]
[1764292740935,5.69586309,2999.2,2999.1,0.001]
[1764292741134,2.36164064,2999.2,2999.1,0.001]
[1764292741455,1.15659411,2999.1,2999.0,0.001]
[1764292741655,3.54076018,2999.1,2999.0,0.001]
[1764292741953,6.87509381,2999.1,2999.0,0.001]
[1764292742340,3.54076018,2999.1,2999.0,0.001]
[1764292742548,2.59716607,2999.1,2999.0,0.001]
[1764292742746,2.08613728,2999.1,2999.0,0.001]
[1764292743331,6.963668,2999.1,2998.9,0.001]
[1764292743556,3.06085846,2999.0,2998.9,0.001]
[1764292744126,6.39530327,2999.0,2998.9,0.001]
[1764292744326,7.61836035,2999.0,2998.9,0.001]
[1764292744867,2.01512434,2999.0,2998.9,0.001]
[1764292745173,0.56924317,2999.0,2998.9,0.001]
[1764292745357,5.10658209,2999.0,2998.9,0.001]
[1764292745650,1.03246137,2999.0,2998.9,0.001]
[1764292745853,1.28693728,2999.0,2998.9,0.001]
[1764292746053,0.34834317,2999.0,2998.9,0.5002]
[1764292746222,6.38,2999.2,2998.9,0.9772]
[1764292746425,0.213,2999.2,2999.1,0.4992]
[1764292747555,1.32198058,2999.2,2998.9,0.001]
[1764292747759,0.04147591,2999.1,2998.9,0.001]
[1764292748342,0.213,2999.0,2998.9,0.001]
[1764292748848,0.5396,2999.0,2998.9,0.001]
[1764292749060,0.63316493,2999.0,2998.9,0.001]
[1764292749230,1.32196493,2999.0,2998.9,0.001]
[1764292750361,1.87429725,2999.0,2998.9,0.001]
[1764292751566,1.32196493,2999.0,2998.9,0.001]
[1764292752060,5.88750785,2999.0,2998.9,0.001]
[1764292752362,6.59372741,2999.0,2998.9,0.001]
[1764292752569,6.63520332,2999.0,2998.9,0.001]
[1764292752740,6.96620332,2999.0,2998.9,0.001]
[1764292752943,7.95478774,2999.0,2998.9,0.001]
[1764292753440,7.24856818,2999.0,2998.9,0.001]
[1764292753638,7.95459619,2999.0,2998.9,0.001]
[1764292754168,14.12159619,2999.0,2998.9,0.001]
[1764292754346,13.62856818,2999.0,2998.9,0.001]
[1764292755257,14.00354342,2999.0,2998.9,0.001]
[1764292756281,14.33454342,2999.0,2998.9,0.001]
[1764292756677,14.12154342,2999.0,2998.9,0.001]
[1764292756882,14.33454342,2999.0,2998.9,0.001]
[1764292768568,14.12154342,2999.0,2998.9,0.001]
[1764292768768,13.52774342,2999.0,2998.9,0.001]
[1764292769064,6.68656493,2999.0,2998.9,0.9598]
[1764292769264,6.89956493,2999.0,2998.9,0.9598]
[1764292770291,6.89956493,2999.0,2998.9,4.294356]
[1764292770598,6.89956493,2999.0,2998.9,0.9598]
[1764292770773,6.89956493,2999.0,2998.9,4.294356]
[1764292770975,6.89956493,2999.0,2998.9,0.9598]
[1764292771495,6.68656493,2999.0,2998.9,4.294356]
[1764292771691,6.89956493,2999.0,2998.9,4.79632183]
[1764292771891,6.68656493,2999.0,2998.9,4.79632183]
[1764292772092,6.89956493,2999.0,2998.9,4.79632183]
[1764292772298,6.68656493,2999.0,2998.9,4.79632183]
[1764292772477,0.002,2999.1,2998.9,4.79632183]
[1764292772791,0.002,2999.1,2999.0,2.31242233]
[1764292774596,0.002,2999.1,2999.0,5.64686714]
[1764292776093,0.002,2999.1,2999.0,0.4774]
[1764292776493,0.04347591,2999.1,2999.0,0.4774]
[1764292776796,0.002,2999.1,2999.0,0.4774]
[1764292777468,0.002,2999.1,2999.0,0.9588]
[1764292778290,0.002,2999.1,2999.0,4.29324481]
[1764292778479,0.215,2999.1,2999.0,4.29324481]
[1764292778680,0.002,2999.1,2999.0,5.05613533]
[1764292780994,0.002,2999.1,2999.0,1.72169052]
[1764292781291,0.002,2999.1,2999.0,4.29324481]
[1764292782094,0.002,2999.1,2999.0,0.4774]
[1764292782293,0.002,2999.1,2999.0,4.28684481]
[1764292782294,0.214,2999.1,2999.0,4.28684481]
[1764292782790,0.214,2999.1,2999.0,0.4774]
[1764292782980,0.5402,2999.1,2998.9,0.001]
[1764292783382,6.594,2999.1,2998.9,0.001]
[1764292783594,0.87554759,2999.0,2998.9,0.001]
[1764292783768,0.212,2999.0,2998.9,0.001]
[1764292783969,0.212,2999.0,2998.9,0.4882]
[1764292784479,0.51835429,2999.0,2998.9,0.4882]
[1764292785166,0.212,2999.0,2998.9,0.9632]
[1764292785711,0.51837933,2999.0,2998.9,0.001]
[1764292786011,0.51837933,2999.0,2998.9,0.4882]
[1764292786996,0.51837933,2999.0,2998.9,4.297756]
[1764292787898,0.212,2999.0,2998.9,4.297756]
[1764292788281,0.002,2999.1,2998.9,7.632312]
[1764292788466,0.002,2999.1,2999.0,0.9622]
[1764292789227,0.002,2999.1,2999.0,4.29664481]
[1764292792230,0.002,2999.1,2999.0,0.4872]
[1764292792713,0.002,2999.1,2999.0,3.82164481]
[1764292793432,0.002,2999.1,2999.0,0.4872]
[1764292794435,0.30827895,2999.1,2999.0,3.33444481]
[1764292794817,0.30827895,2999.1,2999.0,3.82164481]
[1764292795329,0.3083952,2999.1,2999.0,4.29664481]
[1764292798005,0.30436717,2999.1,2999.0,4.29664481]
[1764292798428,0.30436717,2999.1,2999.0,3.82164481]
[1764292799309,0.30436717,2999.1,2999.0,4.29664481]
[1764292799537,0.51636717,2999.1,2999.0,4.29664481]
[1764292799914,0.51636717,2999.1,2999.0,3.82164481]
[1764292800325,0.30436717,2999.1,2999.0,4.32998925]
[1764292800525,0.30436717,2999.1,2999.0,5.06319914]
[1764292802528,0.30436717,2999.1,2999.0,9.31098218]
[1764292802851,0.30436717,2999.1,2999.0,8.83598218]
[1764292804935,0.30436717,2999.1,2999.0,8.06942785]
[1764292805249,0.51636717,2999.1,2999.0,8.54442785]
[1764292805554,0.30436717,2999.1,2999.0,8.54542785]
[1764292805751,0.30636717,2999.1,2999.0,8.54542785]
[1764292807962,1.30636717,2999.1,2999.0,8.54542785]
[1764292810758,1.002,2999.1,2999.0,14.00330907]
[1764292810928,1.002,2999.1,2999.0,14.10330907]
[1764292811531,0.002,2999.4,2999.0,20.98419869]
[1764292811734,0.002,3000.0,2999.6,0.4653]
[1764292811929,0.002,3000.3,3000.1,0.1]
[1764292812150,0.002,3000.3,3000.2,4.99708304]
[1764292812350,0.002,3000.3,3000.2,5.49408304]
[1764292812566,0.002,3000.3,3000.2,6.87293138]
[1764292812860,0.002,3000.3,3000.2,10.2060425]
[1764292813065,0.214,3001.2,3000.6,0.1]
[1764292813240,0.214,3001.2,3000.7,0.9623]
[1764292813764,0.214,3001.2,3000.8,0.497]
[1764292814136,0.344,3000.9,3000.4,0.497]
[1764292814348,0.34753244,3001.1,3000.4,1.28782153]
[1764292814742,0.212,3001.0,3000.6,6.66533358]
[1764292814947,0.002,3001.2,3000.6,6.66533358]
[1764292815154,0.002,3001.2,3000.7,0.497]
[1764292815358,0.002,3001.2,3001.1,0.4653]
[1764292815750,0.59947591,3001.2,3000.7,0.497]
[1764292816049,0.25547591,3001.2,3001.1,0.4653]
[1764292816450,0.002,3001.2,3001.1,1.1463]
[1764292816970,0.002,3001.2,3001.1,4.47841155]
[1764292817276,0.002,3001.2,3001.1,5.59269824]
[1764292817667,0.002,3001.2,3001.1,4.47841155]
[1764292819870,0.002,3001.2,3001.1,4.57841155]
[1764292821246,0.002,3001.2,3001.1,4.47841155]
[1764292821944,0.002,3001.2,3001.1,3.80231155]
[1764292822375,0.3005,3001.2,3001.1,3.33211155]
[1764292822562,0.3005,3001.2,3000.8,3.98933178]
[1764292822945,0.7952,3001.2,3000.8,3.33243178]
[1764292823153,0.0049,3000.9,3000.7,3.33245716]
[1764292823351,0.0049,3000.9,3000.7,3.73139288]
[1764292823751,0.0049,3000.9,3000.7,3.33245716]
[1764292824382,0.2956,3000.8,3000.7,3.33245716]
[1764292824585,0.2956,3000.8,3000.5,3.3327639]
[1764292824586,0.2956,3000.8,3000.5,3.33277787]
[1764292824768,0.2956,3000.8,3000.5,6.66555574]
[1764292825180,0.2956,3000.8,3000.3,0.001]
[1764292825181,0.2956,3000.8,3000.3,6.66700006]
[1764292825486,0.005,3000.4,3000.3,0.001]
[1764292825982,0.212,3000.5,3000.3,0.001]
[1764292826183,0.4988,3000.8,3000.3,0.001]
[1764292826526,0.212,3000.6,3000.3,0.001]
[1764292826992,0.2945,3000.4,3000.3,0.001]
[1764292827354,0.7912,3000.4,3000.3,0.001]
[1764292829982,0.212,3000.6,3000.3,0.4712]
[1764292830410,0.1862,3000.9,3000.5,0.4702]
[1764292830596,0.212,3000.6,3000.5,0.4702]
[1764292831681,1.0032,3000.6,3000.3,0.001]
[1764292831881,0.005,3000.4,3000.3,0.001]
[1764292832386,0.212,3000.6,3000.3,0.4712]
[1764292833094,0.7108,3000.6,3000.3,0.4712]
[1764292833405,0.212,3000.6,3000.3,0.001]
[1764292833576,0.212,3000.6,3000.4,3.33288894]
[1764292833982,0.04147591,3000.8,3000.4,3.33288894]
[1764292834192,0.212,3000.6,3000.4,3.33288894]
[1764292834398,0.2945,3000.5,3000.3,3.33397387]
[1764292834793,0.212,3000.6,3000.4,0.4702]
[1764292834994,0.212,3000.6,3000.5,0.4702]
[1764292835700,0.212,3000.6,3000.5,3.80297787]
[1764292837289,0.212,3000.6,3000.5,0.4702]
[1764292837477,0.30564981,3000.8,3000.5,3.80297787]
[1764292837826,0.212,3000.8,3000.7,0.4702]
[1764292838309,0.30564981,3000.9,3000.7,0.9354]
[1764292838509,0.51764981,3000.9,3000.8,0.4702]
[1764292838810,0.30564981,3001.1,3000.8,0.4702]
[1764292838984,0.55912572,3001.0,3000.8,3.80260053]
[1764292839185,0.30564981,3000.9,3000.8,3.80260053]
[1764292839385,0.59444981,3000.9,3000.8,3.80260053]
[1764292840390,1.28614981,3000.9,3000.6,3.33266679]
[1764292840714,0.30564981,3000.8,3000.6,3.33266679]
[1764292841016,0.195,3000.9,3000.6,3.33266679]
[1764292841214,0.30819007,3000.8,3000.6,3.33266679]
[1764292841533,0.30619007,3000.7,3000.6,3.33266679]
[1764292842316,0.30619007,3000.7,3000.6,3.80236679]
[1764292842518,0.30619007,3000.7,3000.6,4.55425313]
[1764292843219,0.59369007,3000.7,3000.6,0.75188634]
[1764292843431,0.59369007,3000.7,3000.6,3.33266679]
[1764292844485,0.30619007,3000.7,3000.6,3.80236679]
[1764292847189,0.30619007,3000.7,3000.6,4.26436679]
[1764292847916,0.002,3000.8,3000.6,7.63036024]
[1764292848117,0.002,3000.8,3000.7,2.19971219]
[1764292848340,0.002,3000.8,3000.7,2.16638664]
[1764292849322,0.002,3000.8,3000.7,3.16730247]
[1764292849685,0.002,3000.8,3000.7,6.4998582]
[1764292849889,0.002,3000.8,3000.7,7.15877786]
[1764292850120,0.002,3000.8,3000.7,7.22545231]
[1764292851119,0.002,3000.8,3000.7,7.63095631]
[1764292851325,0.002,3000.8,3000.7,7.96195631]
[1764292851501,0.002,3001.2,3001.1,6.92038982]
[1764292851821,0.002,3001.2,3001.1,11.62624035]
[1764292852022,0.002,3001.2,3001.1,12.08824035]
[1764292852725,0.002,3001.2,3001.1,12.41924035]
[1764292854622,0.002,3001.2,3001.1,10.5328485]
[1764292855035,0.002,3001.5,3001.2,1.13109811]
[1764292855243,0.002,3001.5,3001.4,5.42919397]
[1764292855744,0.002,3001.5,3001.4,5.89119397]
[1764292855908,0.002,3001.5,3001.4,9.35639719]
[1764292857142,0.002,3001.5,3001.4,8.79439719]
[1764292857551,0.002,3001.5,3001.4,9.25639719]
[1764292857848,0.002,3001.5,3001.4,10.70750793]
[1764292859055,0.002,3001.6,3001.5,0.1]
[1764292859222,0.002,3001.6,3001.5,1.2437]
[1764292859861,0.002,3001.6,3001.5,1.3771225]
[1764292860714,0.002,3001.6,3001.5,4.70878999]
[1764292860916,0.002,3001.6,3001.5,6.14390731]
[1764292861123,0.002,3001.6,3001.5,6.17722398]
[1764292861328,0.002,3001.6,3001.5,6.14390731]
[1764292861925,0.002,3001.6,3001.5,6.04390731]
[1764292862725,0.002,3001.6,3001.5,6.14390731]
[1764292864079,0.002,3001.6,3001.5,6.17722398]
[1764292864553,0.002,3001.9,3001.5,13.46615307]
[1764292864729,0.002,3002.2,3001.8,4.60359986]
[1764292864933,0.002,3002.2,3002.1,4.82179986]
[1764292865424,0.002,3002.2,3002.1,5.28379986]
[1764292866164,0.212,3003.4,3002.4,0.1]
[1764292866165,0.04147591,3003.4,3002.4,0.1]
[1764292866333,0.04147591,3003.4,3002.1,5.18379986]
[1764292866334,0.04147591,3003.4,3002.9,0.4697]
[1764292866524,0.04147591,3003.4,3003.0,6.66000666]
[1764292866861,0.4968,3003.3,3003.0,6.66000666]
[1764292867357,0.4968,3003.9,3003.2,0.4697]
[1764292867657,0.4968,3003.9,3003.4,0.4697]
[1764292868030,0.1952,3004.1,3003.1,0.8088]
[1764292868031,0.4968,3003.8,3003.1,0.8088]
[1764292868226,0.1952,3004.1,3003.4,0.1]
[1764292868461,0.04147591,3004.0,3003.2,6.65956312]
[1764292868765,0.692,3004.1,3003.4,0.1]
[1764292868930,0.4968,3004.0,3003.4,0.1]
[1764292870358,0.4968,3004.0,3003.0,4.32896526]
[1764292870359,0.2702,3003.5,3002.4,0.312]
[1764292870537,0.4984,3003.4,3002.5,6.66111572]
[1764292870741,0.4984,3003.4,3002.6,0.69731157]